{"text_format":"3","workbook":"xlsx","n_sheets":1,"sheets":["Budget mensile personale"],"read":"whole","date_system":"1900"}

{"sheet":"Budget mensile personale","index":0,"n_rows":64,"n_cols":10,"rows_kept":64,"merged":[[1,1,1,9],[2,1,2,9],[4,1,6,1],[4,2,4,3],[4,6,5,8],[4,9,5,9],[5,2,5,3],[6,2,6,3],[6,6,7,8],[6,9,7,9],[7,1,9,1],[7,2,7,3],[8,2,8,3],[8,6,9,8],[8,9,9,9],[9,2,9,3],[22,6,22,9],[23,1,23,4],[31,6,31,9],[33,1,33,4],[38,6,38,9],[40,1,40,4],[44,6,44,9],[46,1,46,4],[50,6,50,9],[54,1,54,4],[57,6,57,9],[58,6,59,8],[58,9,59,9],[60,6,61,8],[60,9,61,9],[62,6,63,8],[62,9,63,9]]}
[]
[null,"Budget mensile personale"]
[]
[]
[null,"ENTRATE MENSILI PREVISTE","Entrata 1",null,{"v":2500,"d":"€ 2,500"},null,"SALDO PREVISTO (entrate previste meno uscite)",null,null,{"$f":"E7-J59","v":{"v":940,"d":"€ 940"}}]
[null,null,"Entrate extra",null,{"v":500,"d":"€ 500"}]
[null,null,"Totale entrate mensili",null,{"$f":"SUM(E5:E6)","v":{"v":3000,"d":"€ 3,000"}},null,"SALDO EFFETTIVO (entrate effettive meno uscite)",null,null,{"$f":"E10-J61","v":{"v":960,"d":"€ 960"}}]
[null,"ENTRATE MENSILI EFFETTIVE","Entrata 1",null,{"v":2500,"d":"€ 2,500"}]
[null,null,"Entrate extra",null,{"v":500,"d":"€ 500"},null,"DIFFERENZA (effettivo meno previsto)",null,null,{"$f":"J7-J5","v":{"v":20,"d":"€ 20"}}]
[null,null,"Totale entrate mensili",null,{"$f":"SUM(E8:E9)","v":{"v":3000,"d":"€ 3,000"}}]
[]
[null,"ALLOGGIO","Costo previsto","Costo effettivo","Differenza",null,"SVAGO","Costo previsto","Costo effettivo","Differenza"]
[null,"Mutuo o affitto",{"v":1500,"d":"€ 1,500"},{"v":1400,"d":"€ 1,400"},{"$f":"Tabella1[[#This Row],[Costo previsto]]-Tabella1[[#This Row],[Costo effettivo]]","v":{"v":100,"d":"€ 100"}},null,"Video/DVD",{"v":0,"d":"€ 0"},{"v":50,"d":"€ 50"},{"$f":"Tabella2[[#This Row],[Costo previsto]]-Tabella2[[#This Row],[Costo effettivo]]","v":{"v":-50,"d":"-€ 50"}}]
[null,"Telefono",{"v":60,"d":"€ 60"},{"v":100,"d":"€ 100"},{"$f":"Tabella1[[#This Row],[Costo previsto]]-Tabella1[[#This Row],[Costo effettivo]]","v":{"v":-40,"d":"-€ 40"}},null,"CD",null,null,{"$f":"Tabella2[[#This Row],[Costo previsto]]-Tabella2[[#This Row],[Costo effettivo]]","v":{"v":0,"d":"€ 0"}}]
[null,"Elettricità",{"v":50,"d":"€ 50"},{"v":60,"d":"€ 60"},{"$f":"Tabella1[[#This Row],[Costo previsto]]-Tabella1[[#This Row],[Costo effettivo]]","v":{"v":-10,"d":"-€ 10"}},null,"Cinema",null,null,{"$f":"Tabella2[[#This Row],[Costo previsto]]-Tabella2[[#This Row],[Costo effettivo]]","v":{"v":0,"d":"€ 0"}}]
[null,"Gas",{"v":200,"d":"€ 200"},{"v":180,"d":"€ 180"},{"$f":"Tabella1[[#This Row],[Costo previsto]]-Tabella1[[#This Row],[Costo effettivo]]","v":{"v":20,"d":"€ 20"}},null,"Concerti",null,null,{"$f":"Tabella2[[#This Row],[Costo previsto]]-Tabella2[[#This Row],[Costo effettivo]]","v":{"v":0,"d":"€ 0"}}]
[null,"Acqua",null,null,{"$f":"Tabella1[[#This Row],[Costo previsto]]-Tabella1[[#This Row],[Costo effettivo]]","v":{"v":0,"d":"€ 0"}},null,"Eventi sportivi",null,null,{"$f":"Tabella2[[#This Row],[Costo previsto]]-Tabella2[[#This Row],[Costo effettivo]]","v":{"v":0,"d":"€ 0"}}]
[null,"Pay TV",null,null,{"$f":"Tabella1[[#This Row],[Costo previsto]]-Tabella1[[#This Row],[Costo effettivo]]","v":{"v":0,"d":"€ 0"}},null,"Teatro",null,null,{"$f":"Tabella2[[#This Row],[Costo previsto]]-Tabella2[[#This Row],[Costo effettivo]]","v":{"v":0,"d":"€ 0"}}]
[null,"Rimozione rifiuti",null,null,{"$f":"Tabella1[[#This Row],[Costo previsto]]-Tabella1[[#This Row],[Costo effettivo]]","v":{"v":0,"d":"€ 0"}},null,"Altro",null,null,{"$f":"Tabella2[[#This Row],[Costo previsto]]-Tabella2[[#This Row],[Costo effettivo]]","v":{"v":0,"d":"€ 0"}}]
[null,"Manutenzione o riparazioni",null,null,{"$f":"Tabella1[[#This Row],[Costo previsto]]-Tabella1[[#This Row],[Costo effettivo]]","v":{"v":0,"d":"€ 0"}},null,"Altro",null,null,{"$f":"Tabella2[[#This Row],[Costo previsto]]-Tabella2[[#This Row],[Costo effettivo]]","v":{"v":0,"d":"€ 0"}}]
[null,"Forniture",null,null,{"$f":"Tabella1[[#This Row],[Costo previsto]]-Tabella1[[#This Row],[Costo effettivo]]","v":{"v":0,"d":"€ 0"}},null,"Altro",null,null,{"$f":"Tabella2[[#This Row],[Costo previsto]]-Tabella2[[#This Row],[Costo effettivo]]","v":{"v":0,"d":"€ 0"}}]
[null,"Altro",null,null,{"$f":"Tabella1[[#This Row],[Costo previsto]]-Tabella1[[#This Row],[Costo effettivo]]","v":{"v":0,"d":"€ 0"}},null,"Totale",{"$f":"SUBTOTAL(109,Tabella2[Costo previsto])","v":{"v":0,"d":"€ 0"}},{"$f":"SUBTOTAL(109,Tabella2[Costo effettivo])","v":{"v":50,"d":"€ 50"}},{"$f":"SUBTOTAL(109,Tabella2[Differenza])","v":{"v":-50,"d":"-€ 50"}}]
[null,"Totale",{"$f":"SUBTOTAL(109,Tabella1[Costo previsto])","v":{"v":1810,"d":"€ 1,810"}},{"$f":"SUBTOTAL(109,Tabella1[Costo effettivo])","v":{"v":1740,"d":"€ 1,740"}},{"$f":"SUBTOTAL(109,Tabella1[Differenza])","v":{"v":70,"d":"€ 70"}}]
[{"$nulls":6},"PRESTITI","Costo previsto","Costo effettivo","Differenza"]
[null,"TRASPORTI","Costo previsto","Costo effettivo","Differenza",null,"Personale",null,null,{"$f":"Tabella8[[#This Row],[Costo previsto]]-Tabella8[[#This Row],[Costo effettivo]]","v":{"v":0,"d":"€ 0"}}]
[null,"Pagamento veicolo",{"v":250,"d":"€ 250"},{"v":250,"d":"€ 250"},{"$f":"Tabella3[[#This Row],[Costo previsto]]-Tabella3[[#This Row],[Costo effettivo]]","v":{"v":0,"d":"€ 0"}},null,"Studente",null,null,{"$f":"Tabella8[[#This Row],[Costo previsto]]-Tabella8[[#This Row],[Costo effettivo]]","v":{"v":0,"d":"€ 0"}}]
[null,"Bus/taxi",null,null,{"$f":"Tabella3[[#This Row],[Costo previsto]]-Tabella3[[#This Row],[Costo effettivo]]","v":{"v":0,"d":"€ 0"}},null,"Carta di credito",null,null,{"$f":"Tabella8[[#This Row],[Costo previsto]]-Tabella8[[#This Row],[Costo effettivo]]","v":{"v":0,"d":"€ 0"}}]
[null,"Assicurazione",null,null,{"$f":"Tabella3[[#This Row],[Costo previsto]]-Tabella3[[#This Row],[Costo effettivo]]","v":{"v":0,"d":"€ 0"}},null,"Carta di credito",null,null,{"$f":"Tabella8[[#This Row],[Costo previsto]]-Tabella8[[#This Row],[Costo effettivo]]","v":{"v":0,"d":"€ 0"}}]
[null,"Licenze",null,null,{"$f":"Tabella3[[#This Row],[Costo previsto]]-Tabella3[[#This Row],[Costo effettivo]]","v":{"v":0,"d":"€ 0"}},null,"Carta di credito",null,null,{"$f":"Tabella8[[#This Row],[Costo previsto]]-Tabella8[[#This Row],[Costo effettivo]]","v":{"v":0,"d":"€ 0"}}]
[null,"Carburante",null,null,{"$f":"Tabella3[[#This Row],[Costo previsto]]-Tabella3[[#This Row],[Costo effettivo]]","v":{"v":0,"d":"€ 0"}},null,"Altro",null,null,{"$f":"Tabella8[[#This Row],[Costo previsto]]-Tabella8[[#This Row],[Costo effettivo]]","v":{"v":0,"d":"€ 0"}}]
[null,"Manutenzione",null,null,{"$f":"Tabella3[[#This Row],[Costo previsto]]-Tabella3[[#This Row],[Costo effettivo]]","v":{"v":0,"d":"€ 0"}},null,"Totale",{"$f":"SUBTOTAL(109,Tabella8[Costo previsto])","v":{"v":0,"d":"€ 0"}},{"$f":"SUBTOTAL(109,Tabella8[Costo effettivo])","v":{"v":0,"d":"€ 0"}},{"$f":"SUBTOTAL(109,Tabella8[Differenza])","v":{"v":0,"d":"€ 0"}}]
[null,"Altro",null,null,{"$f":"Tabella3[[#This Row],[Costo previsto]]-Tabella3[[#This Row],[Costo effettivo]]","v":{"v":0,"d":"€ 0"}}]
[null,"Totale",{"$f":"SUBTOTAL(109,Tabella3[Costo previsto])","v":{"v":250,"d":"€ 250"}},{"$f":"SUBTOTAL(109,Tabella3[Costo effettivo])","v":{"v":250,"d":"€ 250"}},{"$f":"SUBTOTAL(109,Tabella3[Differenza])","v":{"v":0,"d":"€ 0"}},null,"TASSE","Costo previsto","Costo effettivo","Differenza"]
[{"$nulls":6},"Nazionali",null,null,{"$f":"Tabella9[[#This Row],[Costo previsto]]-Tabella9[[#This Row],[Costo effettivo]]","v":{"v":0,"d":"€ 0"}}]
[null,"ASSICURAZIONE","Costo previsto","Costo effettivo","Differenza",null,"Regionali",null,null,{"$f":"Tabella9[[#This Row],[Costo previsto]]-Tabella9[[#This Row],[Costo effettivo]]","v":{"v":0,"d":"€ 0"}}]
[null,"Casa",null,null,{"$f":"Tabella4[[#This Row],[Costo previsto]]-Tabella4[[#This Row],[Costo effettivo]]","v":{"v":0,"d":"€ 0"}},null,"Locali",null,null,{"$f":"Tabella9[[#This Row],[Costo previsto]]-Tabella9[[#This Row],[Costo effettivo]]","v":{"v":0,"d":"€ 0"}}]
[null,"Salute",null,null,{"$f":"Tabella4[[#This Row],[Costo previsto]]-Tabella4[[#This Row],[Costo effettivo]]","v":{"v":0,"d":"€ 0"}},null,"Altro",null,null,{"$f":"Tabella9[[#This Row],[Costo previsto]]-Tabella9[[#This Row],[Costo effettivo]]","v":{"v":0,"d":"€ 0"}}]
[null,"Vita",null,null,{"$f":"Tabella4[[#This Row],[Costo previsto]]-Tabella4[[#This Row],[Costo effettivo]]","v":{"v":0,"d":"€ 0"}},null,"Totale",{"$f":"SUBTOTAL(109,Tabella9[Costo previsto])","v":{"v":0,"d":"€ 0"}},{"$f":"SUBTOTAL(109,Tabella9[Costo effettivo])","v":{"v":0,"d":"€ 0"}},{"$f":"SUBTOTAL(109,Tabella9[Differenza])","v":{"v":0,"d":"€ 0"}}]
[null,"Altro",null,null,{"$f":"Tabella4[[#This Row],[Costo previsto]]-Tabella4[[#This Row],[Costo effettivo]]","v":{"v":0,"d":"€ 0"}}]
[null,"Totale",{"$f":"SUBTOTAL(109,Tabella4[Costo previsto])","v":{"v":0,"d":"€ 0"}},{"$f":"SUBTOTAL(109,Tabella4[Costo effettivo])","v":{"v":0,"d":"€ 0"}},{"$f":"SUBTOTAL(109,Tabella4[Differenza])","v":{"v":0,"d":"€ 0"}},null,"RISPARMI O INVESTIMENTI","Costo previsto","Costo effettivo","Differenza"]
[{"$nulls":6},"Fondo pensione",null,null,{"$f":"Tabella10[[#This Row],[Costo previsto]]-Tabella10[[#This Row],[Costo effettivo]]","v":{"v":0,"d":"€ 0"}}]
[null,"ALIMENTARI","Costo previsto","Costo effettivo","Differenza",null,"Conto investimento",null,null,{"$f":"Tabella10[[#This Row],[Costo previsto]]-Tabella10[[#This Row],[Costo effettivo]]","v":{"v":0,"d":"€ 0"}}]
[null,"Generi alimentari",null,null,{"$f":"Tabella5[[#This Row],[Costo previsto]]-Tabella5[[#This Row],[Costo effettivo]]","v":{"v":0,"d":"€ 0"}},null,"Altro",null,null,{"$f":"Tabella10[[#This Row],[Costo previsto]]-Tabella10[[#This Row],[Costo effettivo]]","v":{"v":0,"d":"€ 0"}}]
[null,"Cene fuori",null,null,{"$f":"Tabella5[[#This Row],[Costo previsto]]-Tabella5[[#This Row],[Costo effettivo]]","v":{"v":0,"d":"€ 0"}},null,"Totale",{"$f":"SUBTOTAL(109,Tabella10[Costo previsto])","v":{"v":0,"d":"€ 0"}},{"$f":"SUBTOTAL(109,Tabella10[Costo effettivo])","v":{"v":0,"d":"€ 0"}},{"$f":"SUBTOTAL(109,Tabella10[Differenza])","v":{"v":0,"d":"€ 0"}}]
[null,"Altro",null,null,{"$f":"Tabella5[[#This Row],[Costo previsto]]-Tabella5[[#This Row],[Costo effettivo]]","v":{"v":0,"d":"€ 0"}}]
[null,"Totale",{"$f":"SUBTOTAL(109,Tabella5[Costo previsto])","v":{"v":0,"d":"€ 0"}},{"$f":"SUBTOTAL(109,Tabella5[Costo effettivo])","v":{"v":0,"d":"€ 0"}},{"$f":"SUBTOTAL(109,Tabella5[Differenza])","v":{"v":0,"d":"€ 0"}},null,"REGALI E DONAZIONI","Costo previsto","Costo effettivo","Differenza"]
[{"$nulls":6},"Beneficenza 1",null,null,{"$f":"Tabella11[[#This Row],[Costo previsto]]-Tabella11[[#This Row],[Costo effettivo]]","v":{"v":0,"d":"€ 0"}}]
[null,"ANIMALI","Costo previsto","Costo effettivo","Differenza",null,"Beneficenza 2",null,null,{"$f":"Tabella11[[#This Row],[Costo previsto]]-Tabella11[[#This Row],[Costo effettivo]]","v":{"v":0,"d":"€ 0"}}]
[null,"Alimentari",null,null,{"$f":"Tabella6[[#This Row],[Costo previsto]]-Tabella6[[#This Row],[Costo effettivo]]","v":{"v":0,"d":"€ 0"}},null,"Beneficenza 3",null,null,{"$f":"Tabella11[[#This Row],[Costo previsto]]-Tabella11[[#This Row],[Costo effettivo]]","v":{"v":0,"d":"€ 0"}}]
[null,"Veterinario",null,null,{"$f":"Tabella6[[#This Row],[Costo previsto]]-Tabella6[[#This Row],[Costo effettivo]]","v":{"v":0,"d":"€ 0"}},null,"Totale",{"$f":"SUBTOTAL(109,Tabella11[Costo previsto])","v":{"v":0,"d":"€ 0"}},{"$f":"SUBTOTAL(109,Tabella11[Costo effettivo])","v":{"v":0,"d":"€ 0"}},{"$f":"SUBTOTAL(109,Tabella11[Differenza])","v":{"v":0,"d":"€ 0"}}]
[null,"Toelettatura",null,null,{"$f":"Tabella6[[#This Row],[Costo previsto]]-Tabella6[[#This Row],[Costo effettivo]]","v":{"v":0,"d":"€ 0"}}]
[null,"Giocattoli",null,null,{"$f":"Tabella6[[#This Row],[Costo previsto]]-Tabella6[[#This Row],[Costo effettivo]]","v":{"v":0,"d":"€ 0"}},null,"SPESE LEGALI","Costo previsto","Costo effettivo","Differenza"]
[null,"Altro",null,null,{"$f":"Tabella6[[#This Row],[Costo previsto]]-Tabella6[[#This Row],[Costo effettivo]]","v":{"v":0,"d":"€ 0"}},null,"Avvocato",null,null,{"$f":"Tabella12[[#This Row],[Costo previsto]]-Tabella12[[#This Row],[Costo effettivo]]","v":{"v":0,"d":"€ 0"}}]
[null,"Totale",{"$f":"SUBTOTAL(109,Tabella6[Costo previsto])","v":{"v":0,"d":"€ 0"}},{"$f":"SUBTOTAL(109,Tabella6[Costo effettivo])","v":{"v":0,"d":"€ 0"}},{"$f":"SUBTOTAL(109,Tabella6[Differenza])","v":{"v":0,"d":"€ 0"}},null,"Alimenti",null,null,{"$f":"Tabella12[[#This Row],[Costo previsto]]-Tabella12[[#This Row],[Costo effettivo]]","v":{"v":0,"d":"€ 0"}}]
[{"$nulls":6},"Pagamenti da vincoli o sentenze",null,null,{"$f":"Tabella12[[#This Row],[Costo previsto]]-Tabella12[[#This Row],[Costo effettivo]]","v":{"v":0,"d":"€ 0"}}]
[null,"CURA DELLA PERSONA","Costo previsto","Costo effettivo","Differenza",null,"Altro",null,null,{"$f":"Tabella12[[#This Row],[Costo previsto]]-Tabella12[[#This Row],[Costo effettivo]]","v":{"v":0,"d":"€ 0"}}]
[null,"Spese mediche",null,null,{"$f":"Tabella7[[#This Row],[Costo previsto]]-Tabella7[[#This Row],[Costo effettivo]]","v":{"v":0,"d":"€ 0"}},null,"Totale",{"$f":"SUBTOTAL(109,Tabella12[Costo previsto])","v":{"v":0,"d":"€ 0"}},{"$f":"SUBTOTAL(109,Tabella12[Costo effettivo])","v":{"v":0,"d":"€ 0"}},{"$f":"SUBTOTAL(109,Tabella12[Differenza])","v":{"v":0,"d":"€ 0"}}]
[null,"Parrucchiere/manicure",null,null,{"$f":"Tabella7[[#This Row],[Costo previsto]]-Tabella7[[#This Row],[Costo effettivo]]","v":{"v":0,"d":"€ 0"}}]
[null,"Abbigliamento",null,null,{"$f":"Tabella7[[#This Row],[Costo previsto]]-Tabella7[[#This Row],[Costo effettivo]]","v":{"v":0,"d":"€ 0"}},null,"COSTO PREVISTO TOTALE",null,null,{"$f":"SUM(C23,C33,C40,C46,C54,C64,H22,H31,H38,H44,H50,H57)","v":{"v":2060,"d":"€ 2,060"}}]
[null,"Lavanderia",null,null,{"$f":"Tabella7[[#This Row],[Costo previsto]]-Tabella7[[#This Row],[Costo effettivo]]","v":{"v":0,"d":"€ 0"}}]
[null,"Palestra",null,null,{"$f":"Tabella7[[#This Row],[Costo previsto]]-Tabella7[[#This Row],[Costo effettivo]]","v":{"v":0,"d":"€ 0"}},null,"COSTO EFFETTIVO TOTALE",null,null,{"$f":"SUM(D23,D33,D40,D46,D54,D64,I22,I31,I38,I44,I50,I57)","v":{"v":2040,"d":"€ 2,040"}}]
[null,"Quote o contributi associativi",null,null,{"$f":"Tabella7[[#This Row],[Costo previsto]]-Tabella7[[#This Row],[Costo effettivo]]","v":{"v":0,"d":"€ 0"}}]
[null,"Altro",null,null,{"$f":"Tabella7[[#This Row],[Costo previsto]]-Tabella7[[#This Row],[Costo effettivo]]","v":{"v":0,"d":"€ 0"}},null,"DIFFERENZA TOTALE",null,null,{"$f":"SUM(E23,E33,E40,E46,E54,E64,J22,J31,J38,J44,J50,J57)","v":{"v":20,"d":"€ 20"}}]
[null,"Totale",{"$f":"SUBTOTAL(109,Tabella7[Costo previsto])","v":{"v":0,"d":"€ 0"}},{"$f":"SUBTOTAL(109,Tabella7[Costo effettivo])","v":{"v":0,"d":"€ 0"}},{"$f":"SUBTOTAL(109,Tabella7[Differenza])","v":{"v":0,"d":"€ 0"}}]